[Event "Early-Titled-Tuesday-Blitz-April-23-2024"]
[Site "Chess.com"]
[Date "2024.04.23"]
[Round "5"]
[White "K_A_S_T_O_R"]
[Black "Tagir45"]
[Result "1-0"]
[WhiteElo "2853"]
[BlackElo "2657"]
[TimeControl "180+1"]
[EndTime "8:57:12 PDT"]
[Termination "K_A_S_T_O_R won on time"]

1. e4 {[%clk 0:03:00.9]} 1... c5 {[%clk 0:02:55.6]} 2. Nf3 {[%clk 0:03:00.9]}
2... d6 {[%clk 0:02:54.6]} 3. d4 {[%clk 0:03:01.4]} 3... cxd4 {[%clk 0:02:54.9]}
4. Nxd4 {[%clk 0:03:02]} 4... Nf6 {[%clk 0:02:55.1]} 5. Nc3 {[%clk 0:03:02]}
5... a6 {[%clk 0:02:55]} 6. Bg5 {[%clk 0:03:01.4]} 6... Nbd7 {[%clk 0:02:53.2]}
7. Bc4 {[%clk 0:03:00.7]} 7... Qb6 {[%clk 0:02:49.9]} 8. Bb3 {[%clk 0:03:00.8]}
8... e6 {[%clk 0:02:48.4]} 9. Bxf6 {[%clk 0:03:00.5]} 9... Nxf6 {[%clk
0:02:48.1]} 10. Qd2 {[%clk 0:03:00.8]} 10... Be7 {[%clk 0:02:47]} 11. O-O-O
{[%clk 0:03:00.8]} 11... O-O {[%clk 0:02:46.3]} 12. f4 {[%clk 0:03:00.4]} 12...
Bd7 {[%clk 0:02:40.5]} 13. g4 {[%clk 0:02:59.4]} 13... Rfc8 {[%clk 0:02:20]} 14.
g5 {[%clk 0:02:58.2]} 14... Ne8 {[%clk 0:02:18.6]} 15. f5 {[%clk 0:02:56.1]}
15... Kh8 {[%clk 0:01:49.1]} 16. fxe6 {[%clk 0:02:52.7]} 16... fxe6 {[%clk
0:01:48.6]} 17. Bxe6 {[%clk 0:02:50.5]} 17... Bxe6 {[%clk 0:01:47.4]} 18. Nxe6
{[%clk 0:02:50.6]} 18... Qa5 {[%clk 0:01:34.7]} 19. Qd5 {[%clk 0:02:36.5]} 19...
b5 {[%clk 0:01:28.1]} 20. Rd3 {[%clk 0:02:25.5]} 20... Nc7 {[%clk 0:01:18.9]}
21. Nxc7 {[%clk 0:02:23.2]} 21... Qxc7 {[%clk 0:01:19.8]} 22. a3 {[%clk
0:02:18]} 22... Qc5 {[%clk 0:01:12.5]} 23. h4 {[%clk 0:02:12.4]} 23... Rf8
{[%clk 0:00:56.3]} 24. Kb1 {[%clk 0:01:58]} 24... Rac8 {[%clk 0:00:44.6]} 25.
Qxc5 {[%clk 0:01:56.1]} 25... Rxc5 {[%clk 0:00:37.7]} 26. Nd5 {[%clk 0:01:55]}
26... Bd8 {[%clk 0:00:37.5]} 27. Ne3 {[%clk 0:01:50.7]} 27... Re5 {[%clk
0:00:32.6]} 28. Nf5 {[%clk 0:01:49.4]} 28... d5 {[%clk 0:00:21.9]} 29. Nd6
{[%clk 0:01:40.9]} 29... Bc7 {[%clk 0:00:19.9]} 30. Nb7 {[%clk 0:01:26.9]} 30...
dxe4 {[%clk 0:00:19.3]} 31. Rd7 {[%clk 0:01:25.2]} 31... Bb6 {[%clk 0:00:17.8]}
32. Nd6 {[%clk 0:01:24.8]} 32... Kg8 {[%clk 0:00:16.9]} 33. Re1 {[%clk
0:01:20.1]} 33... e3 {[%clk 0:00:15.8]} 34. Kc1 {[%clk 0:01:06.7]} 34... e2
{[%clk 0:00:14.4]} 35. Kd2 {[%clk 0:01:07]} 35... Be3+ {[%clk 0:00:04.7]} 36.
Kd3 {[%clk 0:00:59.4]} 36... Bc5 {[%clk 0:00:02.5]} 37. Nb7 {[%clk 0:00:54.9]}
37... Bb6 {[%clk 0:00:02.1]} 38. Rxe2 {[%clk 0:00:54.3]} 38... Rf3+ {[%clk
0:00:02.1]} 39. Kd2 {[%clk 0:00:54.7]} 39... Be3+ {[%clk 0:00:02.3]} 40. Ke1
{[%clk 0:00:52.1]} 1-0

[Event "Early-Titled-Tuesday-Blitz-April-23-2024"]
[Site "Chess.com"]
[Date "2024.04.23"]
[Round "5"]
[White "N_I_Chess"]
[Black "briesmas"]
[Result "0-1"]
[WhiteElo "2382"]
[BlackElo "2250"]
[TimeControl "180+1"]
[EndTime "8:57:12 PDT"]
[Termination "briesmas won on time"]

1. d4 {[%clk 0:02:55.6]} 1... Nf6 {[%clk 0:02:54.6]} 2. c4 {[%clk 0:02:52.9]}
2... c5 {[%clk 0:02:54.6]} 3. d5 {[%clk 0:02:52.7]} 3... b5 {[%clk 0:02:54.2]}
4. Nd2 {[%clk 0:02:53.3]} 4... g6 {[%clk 0:02:51.1]} 5. b3 {[%clk 0:02:52.5]}
5... Bg7 {[%clk 0:02:51]} 6. Bb2 {[%clk 0:02:52.7]} 6... O-O {[%clk 0:02:50.5]}
7. e4 {[%clk 0:02:46.3]} 7... d6 {[%clk 0:02:48.1]} 8. Qc2 {[%clk 0:02:45]} 8...
bxc4 {[%clk 0:02:46.1]} 9. Nxc4 {[%clk 0:02:02.7]} 9... e6 {[%clk 0:02:38]} 10.
dxe6 {[%clk 0:01:55.6]} 10... Bxe6 {[%clk 0:02:37.6]} 11. Nf3 {[%clk 0:01:43.9]}
11... Nc6 {[%clk 0:02:37.2]} 12. Be2 {[%clk 0:01:20.4]} 12... Nb4 {[%clk
0:02:32]} 13. Qb1 {[%clk 0:01:19]} 13... d5 {[%clk 0:02:27]} 14. exd5 {[%clk
0:01:17.1]} 14... Bf5 {[%clk 0:02:27]} 15. Qc1 {[%clk 0:00:55.5]} 15... Nc2+
{[%clk 0:02:25.5]} 16. Kf1 {[%clk 0:00:55.2]} 16... Nxa1 {[%clk 0:02:23]} 17.
Qxa1 {[%clk 0:00:56.1]} 17... Re8 {[%clk 0:01:55.1]} 18. h3 {[%clk 0:00:45.2]}
18... Qxd5 {[%clk 0:01:26.5]} 19. Ne3 {[%clk 0:00:14.2]} 19... Qd6 {[%clk
0:00:53.6]} 20. Be5 {[%clk 0:00:12.5]} 20... Qe6 {[%clk 0:00:50.8]} 21. Bc4
{[%clk 0:00:10.6]} 21... Qe7 {[%clk 0:00:46.7]} 22. Kg1 {[%clk 0:00:08.7]} 22...
Be6 {[%clk 0:00:45.6]} 23. Be2 {[%clk 0:00:07.9]} 23... Nh5 {[%clk 0:00:44.4]}
24. Bxg7 {[%clk 0:00:07]} 24... Nxg7 {[%clk 0:00:45.3]} 25. Kh2 {[%clk
0:00:07.4]} 25... Nf5 {[%clk 0:00:45.3]} 26. Ng4 {[%clk 0:00:05.3]} 26... Qd6+
{[%clk 0:00:42]} 27. Nge5 {[%clk 0:00:05]} 27... f6 {[%clk 0:00:41.8]} 28. Rd1
{[%clk 0:00:04]} 28... Nd4 {[%clk 0:00:38.7]} 29. Nxd4 {[%clk 0:00:01.6]} 29...
cxd4 {[%clk 0:00:38.8]} 30. f4 {[%clk 0:00:01.5]} 30... fxe5 {[%clk 0:00:37.9]}
31. Bf3 {[%clk 0:00:02.4]} 31... Bd5 {[%clk 0:00:36.3]} 0-1

[Event "Early-Titled-Tuesday-Blitz-April-23-2024"]
[Site "Chess.com"]
[Date "2024.04.23"]
[Round "5"]
[White "azikom"]
[Black "Alenzer"]
[Result "1-0"]
[WhiteElo "2691"]
[BlackElo "2216"]
[TimeControl "180+1"]
[EndTime "8:57:12 PDT"]
[Termination "azikom won by resignation"]

1. e4 {[%clk 0:02:57.1]} 1... c5 {[%clk 0:02:57.9]} 2. Nc3 {[%clk 0:02:57.8]}
2... e6 {[%clk 0:02:57.4]} 3. g3 {[%clk 0:02:58.7]} 3... Nc6 {[%clk 0:02:55.4]}
4. Bg2 {[%clk 0:02:58.2]} 4... d6 {[%clk 0:02:51.5]} 5. d3 {[%clk 0:02:59.1]}
5... Nf6 {[%clk 0:02:50.9]} 6. f4 {[%clk 0:02:37]} 6... Be7 {[%clk 0:02:41.5]}
7. Nh3 {[%clk 0:02:37.9]} 7... h6 {[%clk 0:02:40.9]} 8. O-O {[%clk 0:02:38.3]}
8... a6 {[%clk 0:02:39.1]} 9. Nf2 {[%clk 0:02:38.5]} 9... Qc7 {[%clk 0:02:36.8]}
10. Be3 {[%clk 0:02:34.1]} 10... b6 {[%clk 0:02:36.2]} 11. Ne2 {[%clk
0:02:31.5]} 11... Bb7 {[%clk 0:02:36.3]} 12. c3 {[%clk 0:02:32]} 12... O-O-O
{[%clk 0:02:36.1]} 13. d4 {[%clk 0:02:30.9]} 13... d5 {[%clk 0:02:32.5]} 14. e5
{[%clk 0:02:30.7]} 14... Nd7 {[%clk 0:02:31]} 15. Rc1 {[%clk 0:02:28.4]} 15...
g5 {[%clk 0:02:24.2]} 16. Nd3 {[%clk 0:02:23.9]} 16... gxf4 {[%clk 0:02:21.5]}
17. Nexf4 {[%clk 0:02:21.3]} 17... c4 {[%clk 0:02:19.6]} 18. Nf2 {[%clk
0:02:18.2]} 18... h5 {[%clk 0:02:19.2]} 19. Nxh5 {[%clk 0:02:15.4]} 19... Rdg8
{[%clk 0:02:12.7]} 20. Nh3 {[%clk 0:02:12.1]} 20... Rh7 {[%clk 0:02:01.7]} 21.
Rc2 {[%clk 0:02:11.9]} 21... Rgh8 {[%clk 0:02:00.9]} 22. N3f4 {[%clk 0:02:04.7]}
22... Bg5 {[%clk 0:01:56]} 23. Re1 {[%clk 0:01:45.6]} 23... Bxf4 {[%clk
0:01:50.4]} 24. Nxf4 {[%clk 0:01:41.6]} 24... Rxh2 {[%clk 0:01:49.8]} 25. Qf3
{[%clk 0:01:32.3]} 25... Ndxe5 {[%clk 0:01:46.4]} 26. dxe5 {[%clk 0:01:29.7]}
26... Nxe5 {[%clk 0:01:46.4]} 27. Qd1 {[%clk 0:01:23.4]} 27... Nd3 {[%clk
0:01:23.6]} 28. Bd4 {[%clk 0:00:28.9]} 28... e5 {[%clk 0:00:59]} 29. Nxd3 {[%clk
0:00:28.3]} 29... exd4 {[%clk 0:00:56.1]} 30. Nf4 {[%clk 0:00:24.2]} 30... d3
{[%clk 0:00:53]} 31. Rf2 {[%clk 0:00:23.5]} 31... d4 {[%clk 0:00:49.1]} 32.
Bxb7+ {[%clk 0:00:22]} 32... Qxb7 {[%clk 0:00:47.9]} 33. Rxh2 {[%clk 0:00:22.5]}
33... Rxh2 {[%clk 0:00:42.7]} 34. Kxh2 {[%clk 0:00:23.4]} 34... dxc3 {[%clk
0:00:41.7]} 35. bxc3 {[%clk 0:00:23.3]} 1-0

[Event "Early-Titled-Tuesday-Blitz-April-23-2024"]
[Site "Chess.com"]
[Date "2024.04.23"]
[Round "5"]
[White "amylazy"]
[Black "RandomNoob04"]
[Result "0-1"]
[WhiteElo "2451"]
[BlackElo "2661"]
[TimeControl "180+1"]
[EndTime "8:57:14 PDT"]
[Termination "RandomNoob04 won by checkmate"]

1. d4 {[%clk 0:02:34.8]} 1... Nf6 {[%clk 0:03:00]} 2. Nf3 {[%clk 0:02:19.2]}
2... c5 {[%clk 0:02:58.6]} 3. d5 {[%clk 0:02:09.4]} 3... b5 {[%clk 0:02:58.3]}
4. Bg5 {[%clk 0:02:08]} 4... Qb6 {[%clk 0:02:57.9]} 5. Bxf6 {[%clk 0:02:06.8]}
5... Qxf6 {[%clk 0:02:58.8]} 6. c3 {[%clk 0:02:07.4]} 6... Qb6 {[%clk
0:02:57.2]} 7. e4 {[%clk 0:02:07.5]} 7... d6 {[%clk 0:02:57.3]} 8. Bd3 {[%clk
0:02:07.8]} 8... g6 {[%clk 0:02:57.8]} 9. O-O {[%clk 0:02:08.4]} 9... Bg7 {[%clk
0:02:58.3]} 10. Nbd2 {[%clk 0:02:09]} 10... O-O {[%clk 0:02:58.6]} 11. h3 {[%clk
0:02:08.6]} 11... a5 {[%clk 0:02:52.1]} 12. Re1 {[%clk 0:02:07.2]} 12... b4
{[%clk 0:02:51.9]} 13. Nc4 {[%clk 0:02:03]} 13... Qc7 {[%clk 0:02:51.6]} 14. e5
{[%clk 0:02:03.1]} 14... Nd7 {[%clk 0:02:41.6]} 15. e6 {[%clk 0:02:02.2]} 15...
fxe6 {[%clk 0:02:41.4]} 16. Rxe6 {[%clk 0:01:52.5]} 16... Ne5 {[%clk 0:02:21.5]}
17. Ncxe5 {[%clk 0:01:51.6]} 17... Bxe6 {[%clk 0:02:20.9]} 18. dxe6 {[%clk
0:01:51]} 18... dxe5 {[%clk 0:02:18]} 19. Ng5 {[%clk 0:01:48]} 19... Rad8 {[%clk
0:02:01]} 20. Qe2 {[%clk 0:01:44.1]} 20... bxc3 {[%clk 0:01:39.6]} 21. bxc3
{[%clk 0:01:42.7]} 21... e4 {[%clk 0:01:30.1]} 22. Bxe4 {[%clk 0:01:38.6]} 22...
Bxc3 {[%clk 0:01:26.5]} 23. Rf1 {[%clk 0:01:24.1]} 23... Qf4 {[%clk 0:01:06.5]}
24. Nf7 {[%clk 0:01:09.7]} 24... Rd2 {[%clk 0:01:02.7]} 25. Qc4 {[%clk
0:00:47.3]} 25... Bd4 {[%clk 0:00:58.8]} 26. Bd3 {[%clk 0:00:20.6]} 26... Rxf2
{[%clk 0:00:52.3]} 27. Kh1 {[%clk 0:00:17.5]} 27... Rxf1+ {[%clk 0:00:45.9]} 28.
Bxf1 {[%clk 0:00:17.1]} 28... Qf2 {[%clk 0:00:46.5]} 29. Kh2 {[%clk 0:00:17.3]}
29... Kg7 {[%clk 0:00:38]} 30. Qd3 {[%clk 0:00:13.4]} 30... Qf4+ {[%clk
0:00:26.3]} 31. g3 {[%clk 0:00:11.5]} 31... Qf2+ {[%clk 0:00:25.5]} 32. Bg2
{[%clk 0:00:12.4]} 32... Qg1# {[%clk 0:00:25.7]} 0-1

[Event "Early-Titled-Tuesday-Blitz-April-23-2024"]
[Site "Chess.com"]
[Date "2024.04.23"]
[Round "5"]
[White "FXDon77"]
[Black "czechbul17"]
[Result "1-0"]
[WhiteElo "2842"]
[BlackElo "2066"]
[TimeControl "180+1"]
[EndTime "8:57:17 PDT"]
[Termination "FXDon77 won by resignation"]

1. e4 {[%clk 0:03:00.9]} 1... e5 {[%clk 0:02:55.1]} 2. Nf3 {[%clk 0:03:00.6]}
2... d5 {[%clk 0:02:55.7]} 3. d3 {[%clk 0:02:52.7]} 3... dxe4 {[%clk 0:02:54.4]}
4. dxe4 {[%clk 0:02:49.4]} 4... Qxd1+ {[%clk 0:02:54.8]} 5. Kxd1 {[%clk
0:02:50.1]} 5... Nc6 {[%clk 0:02:39.4]} 6. c3 {[%clk 0:02:46.7]} 6... Bc5 {[%clk
0:02:36.2]} 7. Bb5 {[%clk 0:02:43.4]} 7... Bd7 {[%clk 0:02:34.3]} 8. Ke2 {[%clk
0:02:43.1]} 8... Nf6 {[%clk 0:02:13.7]} 9. Nbd2 {[%clk 0:02:38.6]} 9... a6
{[%clk 0:02:03.9]} 10. Bd3 {[%clk 0:02:35.6]} 10... O-O {[%clk 0:01:53.6]} 11.
Nc4 {[%clk 0:02:25.7]} 11... Rfe8 {[%clk 0:01:49.7]} 12. Be3 {[%clk 0:02:22.5]}
12... Bxe3 {[%clk 0:01:47.5]} 13. Nxe3 {[%clk 0:02:22.2]} 13... Be6 {[%clk
0:01:43.5]} 14. Ng5 {[%clk 0:02:19.8]} 14... Rad8 {[%clk 0:01:35.4]} 15. Nxe6
{[%clk 0:02:12.6]} 15... Rxe6 {[%clk 0:01:36.3]} 16. f3 {[%clk 0:02:11.4]} 16...
Red6 {[%clk 0:01:35]} 17. Rhd1 {[%clk 0:02:03.5]} 17... g6 {[%clk 0:01:35.3]}
18. Bc2 {[%clk 0:01:58.4]} 18... Kf8 {[%clk 0:01:34.1]} 19. a4 {[%clk
0:01:49.9]} 19... Rxd1 {[%clk 0:01:28.3]} 20. Nxd1 {[%clk 0:01:47.7]} 20... Nh5
{[%clk 0:01:09.9]} 21. g3 {[%clk 0:01:43]} 21... Ng7 {[%clk 0:01:10.3]} 22. Ne3
{[%clk 0:01:37.4]} 22... Ne6 {[%clk 0:01:09.9]} 23. a5 {[%clk 0:01:28.5]} 23...
h5 {[%clk 0:01:03.4]} 24. h4 {[%clk 0:01:15.6]} 24... Rd7 {[%clk 0:01:00.4]} 25.
b4 {[%clk 0:01:14.3]} 25... Kg7 {[%clk 0:00:43.7]} 26. Ba4 {[%clk 0:01:13.1]}
26... Kf6 {[%clk 0:00:31]} 27. Nd5+ {[%clk 0:01:09.3]} 27... Kg7 {[%clk
0:00:31.4]} 28. Rd1 {[%clk 0:01:03.8]} 28... Rd6 {[%clk 0:00:30.1]} 29. Nxc7
{[%clk 0:00:58.6]} 29... Ncd4+ {[%clk 0:00:18.5]} 30. cxd4 {[%clk 0:00:56.3]}
30... Nxc7 {[%clk 0:00:17.5]} 31. dxe5 {[%clk 0:00:52.6]} 31... Re6 {[%clk
0:00:02.5]} 32. Rd7 {[%clk 0:00:51.4]} 32... Ne8 {[%clk 0:00:01.8]} 33. f4
{[%clk 0:00:42.5]} 33... b5 {[%clk 0:00:01.8]} 34. Bb3 {[%clk 0:00:42.4]} 34...
Rc6 {[%clk 0:00:02.2]} 35. Bxf7 {[%clk 0:00:39.7]} 35... Nc7 {[%clk 0:00:01.5]}
36. Bd5+ {[%clk 0:00:39.5]} 1-0

[Event "Early-Titled-Tuesday-Blitz-April-23-2024"]
[Site "Chess.com"]
[Date "2024.04.23"]
[Round "5"]
[White "Andrey_Klymchuk"]
[Black "Fandorine"]
[Result "0-1"]
[WhiteElo "2688"]
[BlackElo "2911"]
[TimeControl "180+1"]
[EndTime "8:57:18 PDT"]
[Termination "Fandorine won by resignation"]

1. e4 {[%clk 0:03:00.9]} 1... c5 {[%clk 0:02:56.5]} 2. Nf3 {[%clk 0:03:00.1]}
2... e6 {[%clk 0:02:56.7]} 3. g3 {[%clk 0:02:59]} 3... d5 {[%clk 0:02:54.3]} 4.
exd5 {[%clk 0:02:58.7]} 4... exd5 {[%clk 0:02:55]} 5. Bg2 {[%clk 0:02:59]} 5...
Qe7+ {[%clk 0:02:53.9]} 6. Kf1 {[%clk 0:02:59.2]} 6... Nc6 {[%clk 0:02:53.8]} 7.
d4 {[%clk 0:02:57.6]} 7... Nf6 {[%clk 0:02:48.3]} 8. Nc3 {[%clk 0:02:47.1]} 8...
Be6 {[%clk 0:02:48.5]} 9. Bf4 {[%clk 0:02:26.1]} 9... O-O-O {[%clk 0:02:45.2]}
10. Qd3 {[%clk 0:02:11.6]} 10... c4 {[%clk 0:02:18]} 11. Qe3 {[%clk 0:02:00.2]}
11... Bf5 {[%clk 0:02:18.5]} 12. Ne5 {[%clk 0:01:56.6]} 12... Bxc2 {[%clk
0:02:12]} 13. b3 {[%clk 0:01:35.1]} 13... Qe6 {[%clk 0:01:37.4]} 14. Rc1 {[%clk
0:01:29]} 14... Bf5 {[%clk 0:01:27.3]} 15. bxc4 {[%clk 0:01:22.9]} 15... dxc4
{[%clk 0:01:26.6]} 16. d5 {[%clk 0:01:21.6]} 16... Nxd5 {[%clk 0:01:23.7]} 17.
Nxd5 {[%clk 0:01:19.6]} 17... Rxd5 {[%clk 0:01:24.6]} 18. Nxc6 {[%clk 0:01:07]}
18... bxc6 {[%clk 0:00:48.4]} 19. Qxa7 {[%clk 0:01:03.1]} 19... Bd6 {[%clk
0:00:48.4]} 20. Qa8+ {[%clk 0:00:54.8]} 20... Kd7 {[%clk 0:00:47.4]} 21. Qb7+
{[%clk 0:00:53]} 21... Kd8 {[%clk 0:00:42.9]} 22. Qxc6 {[%clk 0:00:20.5]} 22...
Bxf4 {[%clk 0:00:28.6]} 23. Qa8+ {[%clk 0:00:09.3]} 23... Ke7 {[%clk 0:00:28]}
24. Qb7+ {[%clk 0:00:06.3]} 24... Rd7 {[%clk 0:00:26.1]} 25. Qb4+ {[%clk
0:00:06.2]} 25... Bd6 {[%clk 0:00:25.9]} 26. Qc3 {[%clk 0:00:06]} 26... Be5
{[%clk 0:00:11.7]} 27. Qb4+ {[%clk 0:00:05.8]} 27... Qd6 {[%clk 0:00:12.4]} 28.
Qxc4 {[%clk 0:00:05.1]} 28... Bd3+ {[%clk 0:00:12.2]} 0-1

[Event "Early-Titled-Tuesday-Blitz-April-23-2024"]
[Site "Chess.com"]
[Date "2024.04.23"]
[Round "5"]
[White "Moultino06"]
[Black "Fh2411"]
[Result "1-0"]
[WhiteElo "2758"]
[BlackElo "2565"]
[TimeControl "180+1"]
[EndTime "8:57:22 PDT"]
[Termination "Moultino06 won on time"]

1. d4 {[%clk 0:02:55.9]} 1... d5 {[%clk 0:02:59]} 2. Nc3 {[%clk 0:02:54.3]} 2...
Nf6 {[%clk 0:02:57.7]} 3. Bf4 {[%clk 0:02:54.3]} 3... c6 {[%clk 0:02:56.4]} 4.
e3 {[%clk 0:02:54.3]} 4... Bf5 {[%clk 0:02:55.1]} 5. Nf3 {[%clk 0:02:54.6]} 5...
e6 {[%clk 0:02:52.6]} 6. Ne5 {[%clk 0:02:55]} 6... h6 {[%clk 0:02:46]} 7. g4
{[%clk 0:02:54.4]} 7... Bh7 {[%clk 0:02:41.1]} 8. h4 {[%clk 0:02:54.3]} 8...
Nfd7 {[%clk 0:02:38]} 9. Nf3 {[%clk 0:02:14.6]} 9... a6 {[%clk 0:02:30.2]} 10.
h5 {[%clk 0:02:07.7]} 10... Bb4 {[%clk 0:02:22.1]} 11. a3 {[%clk 0:02:03.3]}
11... Be7 {[%clk 0:02:16.7]} 12. Bd3 {[%clk 0:02:00]} 12... Bxd3 {[%clk
0:02:13.6]} 13. Qxd3 {[%clk 0:02:00.9]} 13... c5 {[%clk 0:02:14]} 14. e4 {[%clk
0:01:46.7]} 14... cxd4 {[%clk 0:01:29.6]} 15. Qxd4 {[%clk 0:01:40.6]} 15... Nc6
{[%clk 0:01:29.4]} 16. Qd2 {[%clk 0:01:35]} 16... d4 {[%clk 0:00:47.2]} 17. Nxd4
{[%clk 0:01:29.3]} 17... e5 {[%clk 0:00:41.3]} 18. Nxc6 {[%clk 0:01:26.8]} 18...
bxc6 {[%clk 0:00:42.2]} 19. Be3 {[%clk 0:01:27.5]} 19... Qa5 {[%clk 0:00:23.4]}
20. O-O-O {[%clk 0:01:11]} 20... Nf6 {[%clk 0:00:22.1]} 21. Kb1 {[%clk 0:00:58]}
21... Rb8 {[%clk 0:00:10.8]} 22. Nd5 {[%clk 0:00:43.1]} 22... Qxa3 {[%clk
0:00:06.4]} 23. Nxf6+ {[%clk 0:00:25.3]} 23... gxf6 {[%clk 0:00:04.4]} 24. c3
{[%clk 0:00:17.1]} 24... Rb7 {[%clk 0:00:01.1]} 25. f3 {[%clk 0:00:12.9]} 1-0

[Event "Early-Titled-Tuesday-Blitz-April-23-2024"]
[Site "Chess.com"]
[Date "2024.04.23"]
[Round "5"]
[White "AlexanderKing"]
[Black "Attacker88"]
[Result "0-1"]
[WhiteElo "2573"]
[BlackElo "2393"]
[TimeControl "180+1"]
[EndTime "8:57:24 PDT"]
[Termination "Attacker88 won on time"]

1. g3 {[%clk 0:03:00.9]} 1... c5 {[%clk 0:02:59.4]} 2. Bg2 {[%clk 0:03:01.2]}
2... Nc6 {[%clk 0:02:58.7]} 3. Nf3 {[%clk 0:03:00.9]} 3... g6 {[%clk 0:02:58.9]}
4. O-O {[%clk 0:03:00.8]} 4... Bg7 {[%clk 0:02:59.4]} 5. c4 {[%clk 0:03:01]}
5... d6 {[%clk 0:02:58.7]} 6. Nc3 {[%clk 0:03:00.8]} 6... e5 {[%clk 0:02:58.7]}
7. a3 {[%clk 0:02:55.4]} 7... Nge7 {[%clk 0:02:58]} 8. Rb1 {[%clk 0:02:48.8]}
8... a5 {[%clk 0:02:57.6]} 9. Ne1 {[%clk 0:02:45.6]} 9... Be6 {[%clk 0:02:56.9]}
10. Nd5 {[%clk 0:02:38.8]} 10... O-O {[%clk 0:02:54.7]} 11. Nc2 {[%clk
0:02:36.5]} 11... Rb8 {[%clk 0:02:51.6]} 12. b4 {[%clk 0:02:29.2]} 12... axb4
{[%clk 0:02:08.6]} 13. axb4 {[%clk 0:02:30.1]} 13... b5 {[%clk 0:01:30.6]} 14.
bxc5 {[%clk 0:01:31.4]} 14... bxc4 {[%clk 0:01:30.1]} 15. Rxb8 {[%clk
0:01:21.2]} 15... Qxb8 {[%clk 0:01:30]} 16. Nxe7+ {[%clk 0:01:19.5]} 16... Nxe7
{[%clk 0:01:30.2]} 17. cxd6 {[%clk 0:01:17.3]} 17... Qxd6 {[%clk 0:01:26.7]} 18.
Ba3 {[%clk 0:01:17.3]} 18... Qd7 {[%clk 0:01:26]} 19. Ne3 {[%clk 0:01:15.7]}
19... Rd8 {[%clk 0:01:11.5]} 20. Qc2 {[%clk 0:01:01.4]} 20... Nc6 {[%clk
0:00:33.2]} 21. Nxc4 {[%clk 0:00:58]} 21... Nd4 {[%clk 0:00:32.9]} 22. Qd3
{[%clk 0:00:57.3]} 22... Qb5 {[%clk 0:00:30.2]} 23. Rc1 {[%clk 0:00:22.9]} 23...
Rc8 {[%clk 0:00:22.6]} 24. Nxe5 {[%clk 0:00:04.3]} 24... Rxc1+ {[%clk
0:00:20.4]} 25. Bxc1 {[%clk 0:00:05.2]} 25... Nxe2+ {[%clk 0:00:20.3]} 26. Kf1
{[%clk 0:00:05.3]} 26... Qxe5 {[%clk 0:00:10.9]} 27. Qxe2 {[%clk 0:00:04.7]}
27... Qa1 {[%clk 0:00:11]} 28. Qe1 {[%clk 0:00:02.1]} 28... Bb2 {[%clk 0:00:09]}
29. Bxb2 {[%clk 0:00:01.8]} 29... Bc4+ {[%clk 0:00:09.3]} 0-1

[Event "Early-Titled-Tuesday-Blitz-April-23-2024"]
[Site "Chess.com"]
[Date "2024.04.23"]
[Round "5"]
[White "Iskusnyh"]
[Black "sokidze"]
[Result "1-0"]
[WhiteElo "2649"]
[BlackElo "2807"]
[TimeControl "180+1"]
[EndTime "8:57:25 PDT"]
[Termination "Iskusnyh won on time"]

1. d4 {[%clk 0:03:00.9]} 1... d5 {[%clk 0:03:00.1]} 2. c4 {[%clk 0:03:00.5]}
2... e6 {[%clk 0:02:59.8]} 3. Nf3 {[%clk 0:02:59.9]} 3... Nf6 {[%clk 0:02:59.4]}
4. g3 {[%clk 0:02:58.7]} 4... Be7 {[%clk 0:02:56.2]} 5. Bg2 {[%clk 0:02:58.3]}
5... O-O {[%clk 0:02:56.9]} 6. O-O {[%clk 0:02:56.2]} 6... c6 {[%clk 0:02:57.3]}
7. Qc2 {[%clk 0:02:53.2]} 7... b6 {[%clk 0:02:57.1]} 8. Rd1 {[%clk 0:02:50.9]}
8... Nbd7 {[%clk 0:02:56]} 9. b3 {[%clk 0:02:50.6]} 9... Bb7 {[%clk 0:02:55.8]}
10. Nc3 {[%clk 0:02:50.3]} 10... Ba6 {[%clk 0:02:55.8]} 11. Nd2 {[%clk
0:02:42.3]} 11... Rc8 {[%clk 0:01:57.9]} 12. Bb2 {[%clk 0:02:16.5]} 12... c5
{[%clk 0:01:16.2]} 13. dxc5 {[%clk 0:02:11.4]} 13... Bxc5 {[%clk 0:00:48.4]} 14.
e3 {[%clk 0:01:56.7]} 14... dxc4 {[%clk 0:00:31.8]} 15. Nxc4 {[%clk 0:01:55]}
15... Qe7 {[%clk 0:00:31.8]} 16. a4 {[%clk 0:01:43.2]} 16... Bxc4 {[%clk
0:00:30]} 17. bxc4 {[%clk 0:01:41.8]} 17... Ne5 {[%clk 0:00:30.3]} 18. Nb5
{[%clk 0:01:38.3]} 18... Nc6 {[%clk 0:00:27.6]} 19. Bxf6 {[%clk 0:01:29.2]}
19... gxf6 {[%clk 0:00:26.8]} 20. Bxc6 {[%clk 0:01:03.4]} 20... Rxc6 {[%clk
0:00:27]} 21. Qe4 {[%clk 0:01:04.2]} 21... Rfc8 {[%clk 0:00:23.9]} 22. Qg4+
{[%clk 0:00:55.4]} 22... Kh8 {[%clk 0:00:23.4]} 23. Rac1 {[%clk 0:00:52]} 23...
f5 {[%clk 0:00:20.5]} 24. Qf4 {[%clk 0:00:51.6]} 24... a6 {[%clk 0:00:18.3]} 25.
Nd4 {[%clk 0:00:50]} 25... R6c7 {[%clk 0:00:17.1]} 26. Nf3 {[%clk 0:00:46.4]}
26... Qf6 {[%clk 0:00:13.1]} 27. Ne5 {[%clk 0:00:39.4]} 27... Ba3 {[%clk
0:00:09.3]} 28. Rb1 {[%clk 0:00:35.1]} 28... Bc5 {[%clk 0:00:04.8]} 29. Rd3
{[%clk 0:00:34.2]} 29... h6 {[%clk 0:00:03.2]} 30. Rbd1 {[%clk 0:00:33.4]} 30...
Bf8 {[%clk 0:00:01.4]} 31. Rd7 {[%clk 0:00:31.8]} 31... Be7 {[%clk 0:00:02]} 32.
Rxc7 {[%clk 0:00:28.1]} 32... Rxc7 {[%clk 0:00:02.9]} 33. Nxf7+ {[%clk
0:00:28.7]} 33... Qxf7 {[%clk 0:00:03.1]} 34. Qxc7 {[%clk 0:00:29.2]} 1-0